[Event "Titled Tuesday Blitz February 22 Early 2022"]
[White "Marson, Juan Miguel"]
[Black "Caputcuoglu, Zeki Berke"]
[WhiteFideId "106585"]
[BlackFideId "34548610"]
[WhiteElo "2053"]
[BlackElo "1368"]
[Result "1-0"]
[Round "04"]
[TimeControl "180+1"]
[Date "2022.02.22"]
[WhiteClock "0:00:05"]
[BlackClock "0:00:28"]

1. e4 {[%clk 0:03:00]}  e5 {[%clk 0:02:59]} 2. Nf3 {[%clk 0:03:00]}  Nc6 {[%clk 0:03:00]} 3. Bb5 {[%clk 0:03:01]}  a6 {[%clk 0:03:00]} 4. Ba4 {[%clk 0:03:01]}  Nf6 {[%clk 0:03:00]} 5. d4 {[%clk 0:03:02]}  b5 {[%clk 0:02:51]} 6. Bb3 {[%clk 0:03:02]}  Nxd4 {[%clk 0:02:51]} 7. Nxd4 {[%clk 0:03:00]}  exd4 {[%clk 0:02:51]} 8. e5 {[%clk 0:03:01]}  Qe7 {[%clk 0:02:49]} 9. O-O {[%clk 0:02:53]}  Ng8 {[%clk 0:02:41]} 10. c3 {[%clk 0:02:46]}  d3 {[%clk 0:02:39]} 11. Qxd3 {[%clk 0:02:43]}  Bb7 {[%clk 0:02:39]} 12. a4 {[%clk 0:02:35]}  b4 {[%clk 0:02:34]} 13. Re1 {[%clk 0:02:16]}  h5 {[%clk 0:02:24]} 14. Bf4 {[%clk 0:02:07]}  g6 {[%clk 0:02:19]} 15. Nd2 {[%clk 0:02:06]}  Bh6 {[%clk 0:02:14]} 16. Nc4 {[%clk 0:01:53]}  Bxf4 {[%clk 0:02:09]} 17. Nd6+ {[%clk 0:01:53]}  Kf8 {[%clk 0:02:04]} 18. Nxb7 {[%clk 0:01:12]}  Kg7 {[%clk 0:01:58]} 19. g3 {[%clk 0:01:07]}  Bh6 {[%clk 0:01:55]} 20. f4 {[%clk 0:00:59]}  Rb8 {[%clk 0:01:47]} 21. Qxa6 {[%clk 0:00:55]}  bxc3 {[%clk 0:01:43]} 22. bxc3 {[%clk 0:00:53]}  h4 {[%clk 0:01:42]} 23. Qa7 {[%clk 0:00:45]}  hxg3 {[%clk 0:01:35]} 24. Qxb8 {[%clk 0:00:41]}  Qh4 {[%clk 0:01:29]} 25. Re2 {[%clk 0:00:28]}  Bxf4 {[%clk 0:01:27]} 26. Qe8 {[%clk 0:00:12]}  Nh6 {[%clk 0:01:27]} 27. Qxd7 {[%clk 0:00:11]}  Be3+ {[%clk 0:01:18]} 28. Kh1 {[%clk 0:00:03]}  Qe4+ {[%clk 0:01:13]} 29. Rg2 {[%clk 0:00:02]}  Qxb7 {[%clk 0:01:08]} 30. Qd5 {[%clk 0:00:02]}  Qb8 {[%clk 0:00:55]} 31. Rf1 {[%clk 0:00:02]}  Rd8 {[%clk 0:00:45]} 32. e6 {[%clk 0:00:03]}  Rxd5 {[%clk 0:00:45]} 33. Bxd5 {[%clk 0:00:04]}  Nf5 {[%clk 0:00:42]} 34. exf7 {[%clk 0:00:04]}  gxh2 {[%clk 0:00:41]} 35. Be4 {[%clk 0:00:04]}  Nd6 {[%clk 0:00:38]} 36. f8=Q+ {[%clk 0:00:04]}  Qxf8 {[%clk 0:00:38]} 37. Rxf8 {[%clk 0:00:04]}  Nxe4 {[%clk 0:00:39]} 38. Kxh2 {[%clk 0:00:05]}  Kxf8 {[%clk 0:00:38]} 39. Re2 {[%clk 0:00:04]}  Bf4+ {[%clk 0:00:38]} 40. Kg2 {[%clk 0:00:05]}  Nxc3 {[%clk 0:00:38]} 41. Rc2 {[%clk 0:00:05]}  Be5 {[%clk 0:00:38]} 42. a5 {[%clk 0:00:03]}  Nb5 {[%clk 0:00:35]} 43. Rc5 {[%clk 0:00:04]}  Na7 {[%clk 0:00:25]} 44. Rxe5 {[%clk 0:00:04]}  Nc6 {[%clk 0:00:26]} 45. Rc5 {[%clk 0:00:03]}  Nb4 {[%clk 0:00:26]} 46. Rxc7 {[%clk 0:00:03]}  Ke8 {[%clk 0:00:26]} 47. Rb7 {[%clk 0:00:03]}  Kd8 {[%clk 0:00:26]} 48. Rxb4 {[%clk 0:00:03]}  Kc7 {[%clk 0:00:27]} 49. a6 {[%clk 0:00:04]}  Kc6 {[%clk 0:00:28]} 50. a7 {[%clk 0:00:05]} 1-0


[Site "https://www.chess.com"]

[Event "Titled Tuesday Blitz February 22 Early 2022"]
[White "Matveeva, Olga"]
[Black "Samaganova, Aleksandra"]
[WhiteFideId "24107018"]
[BlackFideId "13800221"]
[WhiteElo "2083"]
[BlackElo "1859"]
[Result "1-0"]
[Round "04"]
[TimeControl "180+1"]
[Date "2022.02.22"]
[WhiteClock "0:00:18"]
[BlackClock "0:00:06"]

1. e4 {[%clk 0:03:00]}  c5 {[%clk 0:02:56]} 2. Nf3 {[%clk 0:03:00]}  e6 {[%clk 0:02:56]} 3. g3 {[%clk 0:02:54]}  Nc6 {[%clk 0:02:55]} 4. Bg2 {[%clk 0:02:53]}  g6 {[%clk 0:02:55]} 5. d4 {[%clk 0:02:50]}  cxd4 {[%clk 0:02:54]} 6. Nxd4 {[%clk 0:02:49]}  a6 {[%clk 0:02:44]} 7. c4 {[%clk 0:02:31]}  Bg7 {[%clk 0:02:42]} 8. Be3 {[%clk 0:02:29]}  Nge7 {[%clk 0:02:39]} 9. Nc3 {[%clk 0:02:27]}  O-O {[%clk 0:02:32]} 10. O-O {[%clk 0:02:26]}  b6 {[%clk 0:02:14]} 11. Qd2 {[%clk 0:02:18]}  Ne5 {[%clk 0:02:02]} 12. b3 {[%clk 0:02:17]}  Ng4 {[%clk 0:01:56]} 13. Bg5 {[%clk 0:01:58]}  h6 {[%clk 0:01:46]} 14. h3 {[%clk 0:01:35]}  hxg5 {[%clk 0:01:19]} 15. hxg4 {[%clk 0:01:34]}  Bb7 {[%clk 0:01:14]} 16. Rad1 {[%clk 0:01:32]}  Nc8 {[%clk 0:01:05]} 17. Nf3 {[%clk 0:01:20]}  d6 {[%clk 0:00:58]} 18. Rfe1 {[%clk 0:01:17]}  Qe7 {[%clk 0:00:54]} 19. e5 {[%clk 0:01:04]}  dxe5 {[%clk 0:00:47]} 20. Nxe5 {[%clk 0:01:05]}  Bxg2 {[%clk 0:00:46]} 21. Kxg2 {[%clk 0:01:05]}  Qb7+ {[%clk 0:00:42]} 22. f3 {[%clk 0:01:05]}  Ne7 {[%clk 0:00:38]} 23. Qd7 {[%clk 0:00:57]}  Rab8 {[%clk 0:00:32]} 24. Na4 {[%clk 0:00:48]}  Bxe5 {[%clk 0:00:15]} 25. Rxe5 {[%clk 0:00:46]}  Qxd7 {[%clk 0:00:15]} 26. Rxd7 {[%clk 0:00:45]}  Nc6 {[%clk 0:00:16]} 27. Re2 {[%clk 0:00:37]}  b5 {[%clk 0:00:16]} 28. cxb5 {[%clk 0:00:36]}  axb5 {[%clk 0:00:17]} 29. Nc5 {[%clk 0:00:36]}  Ra8 {[%clk 0:00:16]} 30. Red2 {[%clk 0:00:35]}  Nb4 {[%clk 0:00:14]} 31. a4 {[%clk 0:00:33]}  bxa4 {[%clk 0:00:14]} 32. bxa4 {[%clk 0:00:34]}  Nd5 {[%clk 0:00:15]} 33. Kf2 {[%clk 0:00:31]}  Rfc8 {[%clk 0:00:14]} 34. Ne4 {[%clk 0:00:26]}  Rxa4 {[%clk 0:00:11]} 35. Nxg5 {[%clk 0:00:26]}  Rf8 {[%clk 0:00:08]} 36. Ne4 {[%clk 0:00:25]}  Kg7 {[%clk 0:00:07]} 37. g5 {[%clk 0:00:24]}  Ra3 {[%clk 0:00:06]} 38. g4 {[%clk 0:00:20]}  Nf4 {[%clk 0:00:05]} 39. Kg3 {[%clk 0:00:19]}  Nd5 {[%clk 0:00:05]} 40. Rh2 {[%clk 0:00:18]}  Kg8 {[%clk 0:00:05]} 41. Rxd5 {[%clk 0:00:17]}  exd5 {[%clk 0:00:06]} 42. Nf6+ {[%clk 0:00:18]}  Kg7 {[%clk 0:00:06]} 43. Rh7# {[%clk 0:00:18]} 1-0


[Site "https://www.chess.com"]

[Event "Titled Tuesday Blitz February 22 Early 2022"]
[White "Mekhitarian, Krikor Sevag"]
[Black "Weishaeutel, Moritz"]
[WhiteFideId "2107660"]
[BlackFideId "12967300"]
[WhiteElo "2805"]
[BlackElo "2552"]
[Result "1-0"]
[Round "04"]
[TimeControl "180+1"]
[Date "2022.02.22"]
[WhiteClock "0:00:26"]
[BlackClock "0:00:02"]

1. e4 {[%clk 0:03:00]}  e6 {[%clk 0:02:59]} 2. d4 {[%clk 0:03:00]}  d5 {[%clk 0:02:59]} 3. Nd2 {[%clk 0:03:00]}  Nf6 {[%clk 0:02:58]} 4. Bd3 {[%clk 0:02:54]}  c5 {[%clk 0:02:48]} 5. exd5 {[%clk 0:02:54]}  exd5 {[%clk 0:02:46]} 6. dxc5 {[%clk 0:02:42]}  Bxc5 {[%clk 0:02:47]} 7. Ngf3 {[%clk 0:02:43]}  O-O {[%clk 0:02:42]} 8. O-O {[%clk 0:02:42]}  Nc6 {[%clk 0:02:42]} 9. Nb3 {[%clk 0:02:42]}  Bd6 {[%clk 0:02:35]} 10. Bg5 {[%clk 0:02:36]}  h6 {[%clk 0:02:35]} 11. Bh4 {[%clk 0:02:36]}  Bg4 {[%clk 0:02:34]} 12. h3 {[%clk 0:02:36]}  Bh5 {[%clk 0:02:27]} 13. c3 {[%clk 0:02:13]}  Ne5 {[%clk 0:02:18]} 14. Be2 {[%clk 0:02:12]}  Ng6 {[%clk 0:02:16]} 15. Bg3 {[%clk 0:02:09]}  Bxg3 {[%clk 0:02:15]} 16. fxg3 {[%clk 0:02:10]}  Ne7 {[%clk 0:02:05]} 17. g4 {[%clk 0:01:58]}  Bg6 {[%clk 0:02:04]} 18. Nfd4 {[%clk 0:01:56]}  Ne4 {[%clk 0:02:01]} 19. Bd3 {[%clk 0:01:55]}  Nc6 {[%clk 0:02:00]} 20. Bxe4 {[%clk 0:01:48]}  Bxe4 {[%clk 0:01:55]} 21. Qd2 {[%clk 0:01:47]}  Ne5 {[%clk 0:01:52]} 22. Rae1 {[%clk 0:01:41]}  Rc8 {[%clk 0:01:32]} 23. Nf5 {[%clk 0:01:34]}  Re8 {[%clk 0:01:12]} 24. Nbd4 {[%clk 0:01:28]}  Qb6 {[%clk 0:01:08]} 25. b3 {[%clk 0:01:26]}  Rc7 {[%clk 0:00:59]} 26. Kh2 {[%clk 0:01:14]}  Rec8 {[%clk 0:00:28]} 27. Re3 {[%clk 0:01:13]}  Qa5 {[%clk 0:00:24]} 28. Nd6 {[%clk 0:00:57]}  Rd8 {[%clk 0:00:20]} 29. N6f5 {[%clk 0:00:39]}  Rdc8 {[%clk 0:00:12]} 30. a4 {[%clk 0:00:34]}  Rxc3 {[%clk 0:00:11]} 31. Ne7+ {[%clk 0:00:34]}  Kf8 {[%clk 0:00:07]} 32. Nxc8 {[%clk 0:00:33]}  Nc4 {[%clk 0:00:03]} 33. Qxc3 {[%clk 0:00:27]}  Qc7+ {[%clk 0:00:03]} 34. Rg3 {[%clk 0:00:27]}  Ne3 {[%clk 0:00:02]} 35. Qxc7 {[%clk 0:00:26]}  Nxf1+ {[%clk 0:00:02]} 36. Kg1 {[%clk 0:00:26]} 1-0


[Site "https://www.chess.com"]

[Event "Titled Tuesday Blitz February 22 Early 2022"]
[White "Melaugh, Shane"]
[Black "Goryachkina, Aleksandra"]
[WhiteFideId "2509580"]
[BlackFideId "4147103"]
[WhiteElo "2000"]
[BlackElo "2426"]
[Result "0-1"]
[Round "04"]
[TimeControl "180+1"]
[Date "2022.02.22"]
[WhiteClock "0:00:17"]
[BlackClock "0:00:04"]

1. e4 {[%clk 0:03:00]}  c5 {[%clk 0:02:59]} 2. c4 {[%clk 0:02:59]}  Nc6 {[%clk 0:02:56]} 3. Nc3 {[%clk 0:03:00]}  g6 {[%clk 0:02:53]} 4. g3 {[%clk 0:03:00]}  Bg7 {[%clk 0:02:53]} 5. Bg2 {[%clk 0:03:00]}  e6 {[%clk 0:02:52]} 6. Nge2 {[%clk 0:03:00]}  Nge7 {[%clk 0:02:52]} 7. O-O {[%clk 0:02:58]}  O-O {[%clk 0:02:51]} 8. a3 {[%clk 0:02:58]}  d6 {[%clk 0:02:49]} 9. Rb1 {[%clk 0:02:58]}  a5 {[%clk 0:02:40]} 10. d3 {[%clk 0:02:54]}  f5 {[%clk 0:02:14]} 11. Be3 {[%clk 0:02:44]}  Nd4 {[%clk 0:02:08]} 12. b4 {[%clk 0:02:39]}  axb4 {[%clk 0:02:06]} 13. axb4 {[%clk 0:02:40]}  Nec6 {[%clk 0:02:01]} 14. b5 {[%clk 0:02:19]}  Nxe2+ {[%clk 0:01:59]} 15. Nxe2 {[%clk 0:02:19]}  Nd4 {[%clk 0:01:59]} 16. Nxd4 {[%clk 0:02:19]}  cxd4 {[%clk 0:01:54]} 17. Bd2 {[%clk 0:02:18]}  Kh8 {[%clk 0:01:32]} 18. Qb3 {[%clk 0:02:16]}  e5 {[%clk 0:01:19]} 19. Ra1 {[%clk 0:02:16]}  Rxa1 {[%clk 0:01:14]} 20. Rxa1 {[%clk 0:02:16]}  Qf6 {[%clk 0:01:08]} 21. Be1 {[%clk 0:02:03]}  f4 {[%clk 0:01:08]} 22. Ra8 {[%clk 0:01:35]}  f3 {[%clk 0:01:04]} 23. Bf1 {[%clk 0:01:33]}  Bg4 {[%clk 0:00:50]} 24. Rxf8+ {[%clk 0:01:28]}  Bxf8 {[%clk 0:00:50]} 25. Bb4 {[%clk 0:01:28]}  Qe6 {[%clk 0:00:46]} 26. Qd1 {[%clk 0:01:24]}  Qf7 {[%clk 0:00:35]} 27. h3 {[%clk 0:01:21]}  Be6 {[%clk 0:00:35]} 28. Qa1 {[%clk 0:01:20]}  Kg7 {[%clk 0:00:32]} 29. Qa3 {[%clk 0:01:16]}  Qd7 {[%clk 0:00:31]} 30. Kh2 {[%clk 0:01:14]}  h5 {[%clk 0:00:31]} 31. b6 {[%clk 0:00:57]}  Qc6 {[%clk 0:00:23]} 32. Qa7 {[%clk 0:00:42]}  g5 {[%clk 0:00:21]} 33. Ba5 {[%clk 0:00:23]}  g4 {[%clk 0:00:14]} 34. Qb8 {[%clk 0:00:21]}  Be7 {[%clk 0:00:08]} 35. h4 {[%clk 0:00:15]}  Bd7 {[%clk 0:00:06]} 36. Qc7 {[%clk 0:00:14]}  Qxc7 {[%clk 0:00:05]} 37. bxc7 {[%clk 0:00:15]}  Kf7 {[%clk 0:00:05]} 38. Bb6 {[%clk 0:00:15]}  Bc8 {[%clk 0:00:05]} 39. Kg1 {[%clk 0:00:14]}  Ke6 {[%clk 0:00:05]} 40. Bg2 {[%clk 0:00:14]}  fxg2 {[%clk 0:00:04]} 41. Kxg2 {[%clk 0:00:15]}  Kd7 {[%clk 0:00:05]} 42. f3 {[%clk 0:00:15]}  gxf3+ {[%clk 0:00:04]} 43. Kxf3 {[%clk 0:00:16]}  Kc6 {[%clk 0:00:04]} 44. Ba5 {[%clk 0:00:15]}  b6 {[%clk 0:00:05]} 45. Bd2 {[%clk 0:00:15]}  Kxc7 {[%clk 0:00:04]} 46. g4 {[%clk 0:00:16]}  Bxg4+ {[%clk 0:00:04]} 47. Kg3 {[%clk 0:00:17]}  Kd7 {[%clk 0:00:04]} 0-1


[Site "https://www.chess.com"]

[Event "Titled Tuesday Blitz February 22 Early 2022"]
[White "Mikhailov, Viacheslav"]
[Black "Estrada Nieto, Julian"]
[WhiteFideId "4187369"]
[BlackFideId "5101018"]
[WhiteElo "2381"]
[BlackElo "2246"]
[Result "1-0"]
[Round "04"]
[TimeControl "180+1"]
[Date "2022.02.22"]
[WhiteClock "0:00:27"]
[BlackClock "0:00:08"]

1. Nf3 {[%clk 0:03:00]}  d5 {[%clk 0:02:59]} 2. g3 {[%clk 0:02:59]}  Nf6 {[%clk 0:02:59]} 3. Bg2 {[%clk 0:03:00]}  Bg4 {[%clk 0:03:00]} 4. O-O {[%clk 0:03:00]}  c6 {[%clk 0:03:00]} 5. c4 {[%clk 0:03:01]}  Nbd7 {[%clk 0:02:52]} 6. d4 {[%clk 0:03:01]}  e6 {[%clk 0:02:48]} 7. Nc3 {[%clk 0:03:01]}  Be7 {[%clk 0:02:47]} 8. Bf4 {[%clk 0:03:00]}  O-O {[%clk 0:02:46]} 9. Qb3 {[%clk 0:03:01]}  Qb6 {[%clk 0:02:44]} 10. c5 {[%clk 0:03:01]}  Qa6 {[%clk 0:02:44]} 11. Rfe1 {[%clk 0:03:01]}  b6 {[%clk 0:02:43]} 12. cxb6 {[%clk 0:02:57]}  axb6 {[%clk 0:02:43]} 13. e4 {[%clk 0:02:54]}  dxe4 {[%clk 0:02:33]} 14. Nxe4 {[%clk 0:02:55]}  Nxe4 {[%clk 0:02:32]} 15. Rxe4 {[%clk 0:02:56]}  Nf6 {[%clk 0:02:31]} 16. Ree1 {[%clk 0:02:51]}  Nd5 {[%clk 0:02:30]} 17. Ne5 {[%clk 0:02:39]}  Nxf4 {[%clk 0:02:29]} 18. gxf4 {[%clk 0:02:40]}  Bf5 {[%clk 0:02:26]} 19. Nxc6 {[%clk 0:02:39]}  Bf6 {[%clk 0:02:26]} 20. a4 {[%clk 0:02:30]}  h6 {[%clk 0:02:11]} 21. d5 {[%clk 0:02:29]}  exd5 {[%clk 0:02:07]} 22. Qxd5 {[%clk 0:02:30]}  Bd3 {[%clk 0:01:50]} 23. Nb4 {[%clk 0:02:27]}  Qc4 {[%clk 0:01:47]} 24. Nxd3 {[%clk 0:02:25]}  Qxd5 {[%clk 0:01:43]} 25. Bxd5 {[%clk 0:02:26]}  Rad8 {[%clk 0:01:42]} 26. Bc4 {[%clk 0:02:22]}  Rd4 {[%clk 0:01:42]} 27. Bb5 {[%clk 0:02:22]}  Rfd8 {[%clk 0:01:42]} 28. Rad1 {[%clk 0:02:16]}  g6 {[%clk 0:01:40]} 29. Kg2 {[%clk 0:02:16]}  Kg7 {[%clk 0:01:40]} 30. b3 {[%clk 0:02:16]}  h5 {[%clk 0:01:37]} 31. h3 {[%clk 0:02:05]}  R8d6 {[%clk 0:01:37]} 32. Nb2 {[%clk 0:01:59]}  h4 {[%clk 0:01:30]} 33. Rxd4 {[%clk 0:01:57]}  Rxd4 {[%clk 0:01:30]} 34. Nd3 {[%clk 0:01:56]}  g5 {[%clk 0:01:27]} 35. fxg5 {[%clk 0:01:55]}  Bxg5 {[%clk 0:01:27]} 36. Re5 {[%clk 0:01:43]}  Bf6 {[%clk 0:01:26]} 37. Rf5 {[%clk 0:01:40]}  Rd6 {[%clk 0:01:23]} 38. Bc4 {[%clk 0:01:38]}  Kg6 {[%clk 0:01:19]} 39. Rf3 {[%clk 0:01:38]}  Rd7 {[%clk 0:01:14]} 40. Nf4+ {[%clk 0:01:33]}  Kg5 {[%clk 0:01:11]} 41. Nd5 {[%clk 0:01:30]}  Bd4 {[%clk 0:01:09]} 42. Rd3 {[%clk 0:01:23]}  Bc5 {[%clk 0:01:02]} 43. f4+ {[%clk 0:01:23]}  Kh6 {[%clk 0:00:59]} 44. b4 {[%clk 0:01:21]}  Bf8 {[%clk 0:00:58]} 45. Nxb6 {[%clk 0:01:19]}  Rc7 {[%clk 0:00:55]} 46. b5 {[%clk 0:00:53]}  Bb4 {[%clk 0:00:49]} 47. Bb3 {[%clk 0:00:43]}  Rc1 {[%clk 0:00:40]} 48. Nd5 {[%clk 0:00:41]}  Bc5 {[%clk 0:00:40]} 49. Rc3 {[%clk 0:00:38]}  Rg1+ {[%clk 0:00:39]} 50. Kf3 {[%clk 0:00:37]}  Bd4 {[%clk 0:00:39]} 51. Rc6+ {[%clk 0:00:36]}  Kg7 {[%clk 0:00:36]} 52. Ke4 {[%clk 0:00:35]}  Bf2 {[%clk 0:00:34]} 53. Rc7 {[%clk 0:00:30]}  Rb1 {[%clk 0:00:28]} 54. Bc4 {[%clk 0:00:29]}  Re1+ {[%clk 0:00:26]} 55. Kf5 {[%clk 0:00:29]}  Ra1 {[%clk 0:00:17]} 56. Nf6 {[%clk 0:00:27]}  Rxa4 {[%clk 0:00:10]} 57. Rxf7+ {[%clk 0:00:27]}  Kh6 {[%clk 0:00:08]} 58. Rh7# {[%clk 0:00:27]} 1-0


[Site "https://www.chess.com"]

[Event "Titled Tuesday Blitz February 22 Early 2022"]
[White "Mikhnenko, Alexander"]
[Black "Kadam, Om Manish"]
[WhiteFideId "34143014"]
[BlackFideId "45076294"]
[WhiteElo "2140"]
[BlackElo "1729"]
[Result "0-1"]
[Round "04"]
[TimeControl "180+1"]
[Date "2022.02.22"]
[WhiteClock "0:00:15"]
[BlackClock "0:00:37"]

1. e4 {[%clk 0:03:00]}  c6 {[%clk 0:02:58]} 2. d4 {[%clk 0:03:00]}  d5 {[%clk 0:02:59]} 3. Nc3 {[%clk 0:03:00]}  dxe4 {[%clk 0:02:59]} 4. Nxe4 {[%clk 0:02:59]}  Bf5 {[%clk 0:03:00]} 5. Ng3 {[%clk 0:02:58]}  Bg6 {[%clk 0:03:01]} 6. c3 {[%clk 0:02:57]}  e6 {[%clk 0:03:01]} 7. h4 {[%clk 0:02:57]}  h6 {[%clk 0:03:01]} 8. Nh3 {[%clk 0:02:57]}  Nf6 {[%clk 0:03:00]} 9. Nf4 {[%clk 0:02:57]}  Bh7 {[%clk 0:03:00]} 10. Nfh5 {[%clk 0:02:58]}  Nxh5 {[%clk 0:03:00]} 11. Nxh5 {[%clk 0:02:58]}  Nd7 {[%clk 0:03:01]} 12. Bc4 {[%clk 0:02:55]}  Nf6 {[%clk 0:03:01]} 13. Bf4 {[%clk 0:02:53]}  Nxh5 {[%clk 0:02:45]} 14. Qxh5 {[%clk 0:02:54]}  Bg6 {[%clk 0:02:46]} 15. Qg4 {[%clk 0:02:54]}  Bf5 {[%clk 0:02:43]} 16. Qg3 {[%clk 0:02:53]}  g6 {[%clk 0:02:14]} 17. Be5 {[%clk 0:02:49]}  Rg8 {[%clk 0:02:10]} 18. O-O {[%clk 0:02:47]}  Be7 {[%clk 0:02:09]} 19. h5 {[%clk 0:02:32]}  Qd7 {[%clk 0:02:07]} 20. Qf3 {[%clk 0:02:23]}  O-O-O {[%clk 0:02:04]} 21. b4 {[%clk 0:02:19]}  gxh5 {[%clk 0:01:50]} 22. a4 {[%clk 0:02:15]}  Rg4 {[%clk 0:01:42]} 23. Bd3 {[%clk 0:02:04]}  Rdg8 {[%clk 0:01:37]} 24. g3 {[%clk 0:01:59]}  Bxd3 {[%clk 0:01:32]} 25. Qxd3 {[%clk 0:01:59]}  h4 {[%clk 0:01:33]} 26. Qh7 {[%clk 0:01:24]}  hxg3 {[%clk 0:01:16]} 27. fxg3 {[%clk 0:01:25]}  f6 {[%clk 0:01:13]} 28. Bf4 {[%clk 0:01:19]}  Bd6 {[%clk 0:01:08]} 29. Qxd7+ {[%clk 0:01:17]}  Kxd7 {[%clk 0:01:09]} 30. Bxd6 {[%clk 0:01:17]}  Kxd6 {[%clk 0:01:09]} 31. Rxf6 {[%clk 0:01:17]}  Rxg3+ {[%clk 0:01:09]} 32. Kf2 {[%clk 0:01:10]}  Rxc3 {[%clk 0:01:07]} 33. Re1 {[%clk 0:01:10]}  Re8 {[%clk 0:01:05]} 34. Rxh6 {[%clk 0:01:04]}  Rc4 {[%clk 0:01:05]} 35. b5 {[%clk 0:00:58]}  Rxa4 {[%clk 0:00:58]} 36. bxc6 {[%clk 0:00:58]}  bxc6 {[%clk 0:00:59]} 37. Ke3 {[%clk 0:00:47]}  Rg8 {[%clk 0:00:54]} 38. Kf2 {[%clk 0:00:41]}  Rf8+ {[%clk 0:00:53]} 39. Kg2 {[%clk 0:00:34]}  Re8 {[%clk 0:00:42]} 40. Re4 {[%clk 0:00:20]}  Kd5 {[%clk 0:00:41]} 41. Re5+ {[%clk 0:00:20]}  Kxd4 {[%clk 0:00:40]} 42. Rg5 {[%clk 0:00:20]}  Ra2+ {[%clk 0:00:39]} 43. Kg1 {[%clk 0:00:20]}  e5 {[%clk 0:00:39]} 44. Rd6+ {[%clk 0:00:18]}  Kc5 {[%clk 0:00:39]} 45. Rd7 {[%clk 0:00:19]}  a5 {[%clk 0:00:38]} 46. Ra7 {[%clk 0:00:17]}  Kb6 {[%clk 0:00:37]} 47. Rd7 {[%clk 0:00:16]}  a4 {[%clk 0:00:37]} 48. Rdg7 {[%clk 0:00:15]}  a3 {[%clk 0:00:37]} 0-1


[Site "https://www.chess.com"]

[Event "Titled Tuesday Blitz February 22 Early 2022"]
[White "Miszler, Levente"]
[Black "Fakhretdinova, Margarita"]
[WhiteFideId "763276"]
[BlackFideId "24103667"]
[WhiteElo "1966"]
[BlackElo "2217"]
[Result "1-0"]
[Round "04"]
[TimeControl "180+1"]
[Date "2022.02.22"]
[WhiteClock "0:01:01"]
[BlackClock "0:00:03"]

1. Nf3 {[%clk 0:02:58]}  Nf6 {[%clk 0:02:59]} 2. c4 {[%clk 0:02:53]}  g6 {[%clk 0:02:56]} 3. d4 {[%clk 0:02:52]}  Bg7 {[%clk 0:02:57]} 4. g3 {[%clk 0:02:52]}  O-O {[%clk 0:02:52]} 5. Bg2 {[%clk 0:02:50]}  c6 {[%clk 0:02:52]} 6. O-O {[%clk 0:02:43]}  d5 {[%clk 0:02:52]} 7. cxd5 {[%clk 0:02:42]}  cxd5 {[%clk 0:02:53]} 8. Nc3 {[%clk 0:02:43]}  Ne4 {[%clk 0:02:52]} 9. e3 {[%clk 0:02:38]}  Nxc3 {[%clk 0:02:42]} 10. bxc3 {[%clk 0:02:38]}  Nc6 {[%clk 0:02:42]} 11. a4 {[%clk 0:02:35]}  b6 {[%clk 0:02:27]} 12. Ba3 {[%clk 0:02:33]}  Bb7 {[%clk 0:02:13]} 13. Nd2 {[%clk 0:02:18]}  Na5 {[%clk 0:02:05]} 14. c4 {[%clk 0:02:09]}  Re8 {[%clk 0:01:53]} 15. c5 {[%clk 0:02:04]}  bxc5 {[%clk 0:01:40]} 16. Bxc5 {[%clk 0:02:05]}  Ba6 {[%clk 0:01:38]} 17. Re1 {[%clk 0:02:02]}  Nc4 {[%clk 0:01:29]} 18. Nxc4 {[%clk 0:02:01]}  Bxc4 {[%clk 0:01:30]} 19. Qc2 {[%clk 0:01:56]}  Qc7 {[%clk 0:00:45]} 20. Reb1 {[%clk 0:01:51]}  Rab8 {[%clk 0:00:43]} 21. Rxb8 {[%clk 0:01:36]}  Rxb8 {[%clk 0:00:44]} 22. Rb1 {[%clk 0:01:36]}  e5 {[%clk 0:00:27]} 23. Bf1 {[%clk 0:01:32]}  Bxf1 {[%clk 0:00:13]} 24. Kxf1 {[%clk 0:01:33]}  exd4 {[%clk 0:00:11]} 25. exd4 {[%clk 0:01:33]}  Re8 {[%clk 0:00:10]} 26. Qd3 {[%clk 0:01:27]}  Qd7 {[%clk 0:00:10]} 27. Qb5 {[%clk 0:01:26]}  Qe6 {[%clk 0:00:07]} 28. Kg1 {[%clk 0:01:22]}  a6 {[%clk 0:00:06]} 29. Qb7 {[%clk 0:01:20]}  h5 {[%clk 0:00:05]} 30. h4 {[%clk 0:01:19]}  Qe4 {[%clk 0:00:03]} 31. Rd1 {[%clk 0:01:07]}  Qf5 {[%clk 0:00:03]} 32. Qxa6 {[%clk 0:01:01]}  Re2 {[%clk 0:00:03]} 33. Qxe2 {[%clk 0:01:01]} 1-0


[Site "https://www.chess.com"]

[Event "Titled Tuesday Blitz February 22 Early 2022"]
[White "Mohammadian, Mohammad"]
[Black "Thomas, Anysia"]
[WhiteFideId "12566055"]
[BlackFideId "670472"]
[WhiteElo "1543"]
[BlackElo "2002"]
[Result "0-1"]
[Round "04"]
[TimeControl "180+1"]
[Date "2022.02.22"]
[WhiteClock "0:00:29"]
[BlackClock "0:01:31"]

1. e4 {[%clk 0:03:00]}  c5 {[%clk 0:02:59]} 2. Nf3 {[%clk 0:02:59]}  g6 {[%clk 0:02:59]} 3. d4 {[%clk 0:02:59]}  cxd4 {[%clk 0:03:00]} 4. Nxd4 {[%clk 0:02:59]}  Nc6 {[%clk 0:03:00]} 5. Be3 {[%clk 0:02:59]}  Bg7 {[%clk 0:03:00]} 6. Nc3 {[%clk 0:02:56]}  Nf6 {[%clk 0:03:00]} 7. Be2 {[%clk 0:02:53]}  O-O {[%clk 0:03:00]} 8. Qd2 {[%clk 0:02:53]}  d5 {[%clk 0:03:01]} 9. exd5 {[%clk 0:02:52]}  Nxd5 {[%clk 0:03:02]} 10. Nxd5 {[%clk 0:02:52]}  Qxd5 {[%clk 0:03:01]} 11. Bf3 {[%clk 0:02:28]}  Qe5 {[%clk 0:02:52]} 12. O-O-O {[%clk 0:02:21]}  Bf5 {[%clk 0:02:43]} 13. c3 {[%clk 0:02:17]}  Qa5 {[%clk 0:02:34]} 14. Nxf5 {[%clk 0:02:12]}  Qxf5 {[%clk 0:02:33]} 15. Qc2 {[%clk 0:02:06]}  Qa5 {[%clk 0:02:30]} 16. Kb1 {[%clk 0:02:04]}  Rac8 {[%clk 0:02:30]} 17. Bxc6 {[%clk 0:01:59]}  Rxc6 {[%clk 0:02:27]} 18. Rd7 {[%clk 0:01:55]}  Bxc3 {[%clk 0:01:46]} 19. bxc3 {[%clk 0:01:52]}  Rxc3 {[%clk 0:01:46]} 20. Qb2 {[%clk 0:01:43]}  Qf5+ {[%clk 0:01:44]} 21. Ka1 {[%clk 0:01:23]}  Rxe3 {[%clk 0:01:44]} 22. Qxb7 {[%clk 0:01:14]}  Re2 {[%clk 0:01:38]} 23. Rb1 {[%clk 0:00:48]}  Qf6+ {[%clk 0:01:31]} 24. Rb2 {[%clk 0:00:29]}  Re1+ {[%clk 0:01:31]} 0-1


[Site "https://www.chess.com"]